bitfinex/quotes_BTCUSD_20250320
["timestamp","ask_amount","ask_price","bid_price","bid_amount"]
[1742438064216,0.197814,85940.0,85935.0,0.011636]
[1742438065087,0.186181,85938.0,85933.0,0.1863595]
[1742438065513,0.197817,85938.0,85933.0,0.1863595]
[1742438065715,0.197817,85938.0,85933.0,0.1873595]
[1742438065914,0.197817,85938.0,85933.0,0.1863595]
[1742438066247,0.186184,85937.0,85933.0,0.0031695]
[1742438066461,0.197817,85938.0,85933.0,0.1893605]
[1742438067177,0.197817,85938.0,85935.0,0.002]
[1742438067497,0.197817,85938.0,85933.0,0.0031695]
[1742438067739,0.19782,85937.0,85933.0,0.0001695]
[1742438068079,0.19782,85937.0,85933.0,0.0021695]
[1742438068283,0.011636,85937.0,85933.0,0.0021695]
[1742438068469,0.19782,85937.0,85933.0,0.1883605]
[1742438068613,0.19782,85937.0,85933.0,0.1863605]
[1742438068808,0.19782,85937.0,85933.0,0.1883605]
[1742438069057,0.19782,85937.0,85933.0,0.1913605]
[1742438069258,0.197825,85934.0,85933.0,0.0051695]
[1742438070216,0.094335,85943.0,85934.0,0.011636]
[1742438070398,0.011974,85941.0,85936.0,0.011636]
[1742438070608,0.197813,85940.0,85935.0,0.197821]
[1742438070781,0.18618,85939.0,85934.0,0.011636]
[1742438070975,0.011636,85938.0,85933.0,0.1979955]
[1742438071219,0.000339,85941.0,85934.0,0.011636]
[1742438071421,0.000339,85941.0,85937.0,0.011636]
[1742438071753,0.000339,85941.0,85938.0,0.186179]
[1742438071962,0.000339,85941.0,85937.0,0.197818]
[1742438072985,0.000339,85941.0,85938.0,0.002]
[1742438073187,0.000339,85941.0,85937.0,0.197818]
[1742438073419,0.000339,85941.0,85938.0,0.13164]
[1742438073820,0.000339,85941.0,85938.0,0.1318095]
[1742438074235,0.000339,85941.0,85938.0,0.3316245]
[1742438074470,0.000339,85941.0,85939.0,0.011636]
[1742438075357,0.000339,85941.0,85940.0,0.011636]
[1742438075567,0.000339,85941.0,85940.0,0.14552296]
[1742438076710,0.000339,85941.0,85940.0,0.14752296]
[1742438077782,0.000339,85945.0,85944.0,0.02617585]
[1742438077987,0.000339,85945.0,85944.0,0.24988888]
[1742438078195,0.000339,85945.0,85944.0,0.66830055]
[1742438079189,0.000339,85945.0,85944.0,0.67230055]
[1742438079402,0.000339,85945.0,85944.0,0.74890055]
[1742438079603,0.0001695,85956.0,85952.0,0.197784]
[1742438079844,0.0001695,85956.0,85952.0,0.38147075]
[1742438080046,0.0001695,85956.0,85952.0,0.38030752]
[1742438080233,0.0001695,85956.0,85952.0,0.92368255]
[1742438080450,7.8e-07,85956.0,85955.0,0.197776]
[1742438080694,7.8e-07,85956.0,85955.0,0.79823747]
[1742438080836,7.8e-07,85956.0,85955.0,0.79707455]
[1742438081037,0.0001695,85997.0,85987.0,0.011629]
[1742438081265,0.0001695,85997.0,85987.0,0.46458171]
[1742438081471,0.00022797,85988.0,85987.0,0.49968109]
[1742438082265,0.00022797,85988.0,85987.0,0.46341888]
[1742438082793,0.00022797,85988.0,85987.0,0.50462679]
[1742438083196,0.00022797,85988.0,85987.0,0.46841888]
[1742438083551,0.00022797,85988.0,85987.0,0.47241888]
[1742438083989,0.00022797,85988.0,85987.0,0.46841888]
[1742438084385,0.00022797,85988.0,85987.0,0.47441888]
[1742438084983,0.00022797,85988.0,85987.0,0.49807647]
[1742438088869,0.00022797,85988.0,85987.0,0.50663503]
[1742438092632,0.00022797,85988.0,85987.0,0.47441888]
[1742438095242,0.00022797,85988.0,85987.0,0.47433888]
[1742438097737,0.00022797,85988.0,85987.0,0.77433888]
[1742438099763,0.19767,86002.0,85996.0,0.197681]
[1742438099981,0.19772834,86002.0,85996.0,0.197681]
[1742438100620,0.197673,86001.0,85996.0,0.011628]
[1742438100803,0.19772834,86002.0,85996.0,0.197682]
[1742438101232,0.19772834,86002.0,85996.0,0.199682]
[1742438102040,0.19772834,86002.0,85996.0,0.201682]
[1742438102380,5.834e-05,86002.0,85998.0,0.02616885]
[1742438102652,5.834e-05,86002.0,86001.0,0.011627]
[1742438102855,5.834e-05,86002.0,86001.0,0.02733048]
[1742438105390,5.834e-05,86002.0,86001.0,0.02933048]
[1742438105593,5.834e-05,86002.0,86001.0,0.01854085]
[1742438105838,0.08728534,86002.0,86001.0,0.004]
[1742438106944,0.20686037,86002.0,86001.0,0.002]
[1742438108247,0.011628,85994.0,85987.0,0.011629]
[1742438108631,0.011628,85994.0,85988.0,0.197699]
[1742438108990,0.197689,85994.0,85988.0,0.197699]
[1742438110491,0.197689,85994.0,85989.0,0.22225224]
[1742438110690,0.197689,85994.0,85990.0,0.03618424]
[1742438110913,0.197692,85992.0,85987.0,0.011629]
[1742438111232,0.197692,85992.0,85988.0,0.04020599]
[1742438111431,0.197692,85992.0,85989.0,0.03620599]
[1742438111632,0.197692,85992.0,85990.0,0.03620599]
[1742438111829,0.197692,85992.0,85987.0,0.197702]
[1742438112151,0.197692,85992.0,85988.0,0.03620874]
[1742438112357,0.186068,85990.0,85989.0,0.03620874]
[1742438112771,0.44207203,85990.0,85989.0,0.03620874]
[1742438113056,0.272701,85988.0,85987.0,0.002]
[1742438113264,0.39227603,85988.0,85987.0,0.004]
[1742438113436,0.39227603,85988.0,85987.0,0.002]
[1742438114423,0.197735,85973.0,85972.0,0.13152]
[1742438114649,0.197735,85973.0,85972.0,0.16780137]
[1742438114870,0.272935,85973.0,85972.0,0.03628137]
[1742438115628,0.272935,85973.0,85972.0,0.03633974]
[1742438116107,0.272935,85973.0,85972.0,0.03833974]
[1742438116322,0.272935,85973.0,85972.0,0.00205837]
[1742438116323,0.28488154,85973.0,85972.0,0.00205837]
[1742438116732,0.28488154,85973.0,85972.0,0.00405837]
[1742438116733,0.01194654,85973.0,85972.0,0.00405837]
[1742438116974,0.01194654,85973.0,85972.0,0.04032963]
[1742438117210,0.01163,85982.0,85977.0,0.186095]
[1742438117409,0.197715,85982.0,85977.0,0.186095]
[1742438118275,0.01163,85980.0,85972.0,0.20179437]
[1742438118493,0.197716,85982.0,85976.0,0.197728]
[1742438118494,0.20938933,85982.0,85976.0,0.197728]
[1742438119196,0.01167333,85982.0,85977.0,0.197725]
[1742438119650,0.01163,85983.0,85977.0,0.197725]
[1742438119872,0.01163,85983.0,85977.0,0.329245]
[1742438120110,0.197708,85985.0,85979.0,0.186091]
[1742438120337,0.011628,85992.0,85984.0,0.01163]
[1742438120582,0.197692,85992.0,85985.0,0.186078]
[1742438120849,0.186068,85990.0,85985.0,0.185078]
[1742438121253,0.011629,85989.0,85984.0,0.01163]
[1742438121444,0.1977,85989.0,85984.0,0.01163]
[1742438122700,0.197703,85988.0,85982.0,0.197715]
[1742438122917,0.197703,85988.0,84791.0,0.00781767]
[1742438122918,0.186076,85986.0,85983.0,0.01454085]
[1742438123145,0.197711,85984.0,85978.0,0.01454085]
[1742438123538,0.197711,85984.0,85980.0,0.01454085]
[1742438123747,0.197711,85984.0,85979.0,0.01454085]
[1742438124117,0.197711,85984.0,85983.0,0.01554085]
[1742438124721,0.197711,85984.0,85983.0,0.01454085]
[1742438125564,0.197715,85983.0,85979.0,0.001]
[1742438125721,0.186085,85983.0,85979.0,0.001]
[1742438125917,0.01163,85984.0,85979.0,0.198721]
[1742438126142,0.011629,85987.0,85980.0,0.01163]
[1742438126340,0.197705,85987.0,85981.0,0.186087]
[1742438126543,0.011629,85986.0,85983.0,0.001]
[1742438126747,0.197707,85986.0,85983.0,0.001]
[1742438127124,0.197707,85986.0,85981.0,0.197717]
[1742438127282,0.011629,85987.0,85982.0,0.197713]
[1742438127489,0.197705,85987.0,85982.0,0.01163]
[1742438127897,0.011629,85987.0,85982.0,0.01163]
[1742438128096,0.0001694,85997.0,85991.0,0.011629]
[1742438128358,0.0117974,85997.0,85992.0,0.011628]
[1742438128561,0.0117974,85997.0,85991.0,0.197694]
[1742438128562,0.186057,85995.0,85991.0,0.197694]
[1742438128742,0.011628,85996.0,85991.0,0.197694]
[1742438129135,0.197684,85996.0,85991.0,0.197694]
[1742438129497,0.20957461,85996.0,85991.0,0.197694]
[1742438130841,0.0001694,85997.0,85995.0,0.186057]
[1742438131077,0.0001694,85997.0,85996.0,0.02616885]
[1742438131456,0.0001694,85997.0,85996.0,0.02733146]
[1742438132233,0.0001694,85997.0,85996.0,0.02616885]
[1742438132447,0.0001694,85997.0,85996.0,0.14574388]
[1742438132661,0.0001694,85997.0,85996.0,0.22230651]
[1742438132864,0.0001694,85997.0,85996.0,0.56634388]
[1742438133484,0.0001694,85997.0,85996.0,0.31454085]
[1742438133689,0.011628,85992.0,85987.0,0.197701]
[1742438133905,0.011628,85993.0,85983.0,0.57888]
[1742438133906,0.011628,85993.0,85988.0,0.13152]
[1742438134113,0.011629,85990.0,85988.0,0.13152]
[1742438134294,0.011629,85991.0,85988.0,0.13152]
[1742438134452,0.011628,85995.0,85988.0,0.13152]
[1742438134654,0.197689,85994.0,85989.0,0.197699]
[1742438135059,0.011628,85996.0,85991.0,0.197693]
[1742438135625,0.0001694,85997.0,85992.0,0.19769]
[1742438135754,0.1862224,85997.0,85992.0,0.19769]
[1742438136141,0.197685,85996.0,85991.0,0.011629]
[1742438136391,0.011628,85995.0,85990.0,0.01454085]
[1742438137009,0.011628,85995.0,85992.0,0.002]
[1742438137158,0.197689,85994.0,85992.0,0.004]
[1742438137368,0.197689,85994.0,85992.0,0.002]
[1742438137565,0.197689,85994.0,85990.0,0.01454085]
[1742438137807,0.197689,85994.0,85990.0,0.01754085]
[1742438138007,0.011628,85994.0,85990.0,0.01454085]
[1742438138215,0.011628,85996.0,85991.0,0.186065]
[1742438138534,0.0001694,85997.0,85993.0,0.186059]
[1742438138741,0.0117974,85997.0,85992.0,0.014628]
[1742438139662,0.0117974,85997.0,85991.0,0.197694]
[1742438139663,0.197684,85996.0,85991.0,0.197694]
[1742438139839,0.1862234,85997.0,85992.0,0.19769]
[1742438140406,0.0001694,85997.0,85993.0,0.197687]
[1742438140821,0.0001694,85997.0,85996.0,0.186055]
[1742438141820,0.0001694,85997.0,85996.0,0.197683]
[1742438142562,0.0001694,85997.0,85996.0,0.21222385]
[1742438143385,0.0001694,85997.0,85996.0,0.21422385]
[1742438144391,0.0001694,85997.0,85996.0,0.21622385]
[1742438145099,0.0001694,85997.0,85996.0,0.25248947]
[1742438145977,0.0001694,85997.0,85996.0,0.3720645]
[1742438146177,0.0001694,85997.0,85996.0,0.3700645]
[1742438146379,0.0001694,85997.0,85996.0,0.3720645]
[1742438146611,0.0118023,86013.0,86001.0,0.21221185]
[1742438146753,0.0118023,86013.0,86001.0,0.34369185]
[1742438148072,0.0118023,86013.0,86001.0,0.34669185]
[1742438148273,0.0118023,86013.0,86001.0,0.35069185]
[1742438149047,0.0118023,86013.0,86001.0,0.65069185]
[1742438150373,0.0001695,86015.0,86001.0,0.77026688]
[1742438150567,0.0001695,86015.0,86001.0,0.88280839]
[1742438150775,0.0001695,86015.0,86001.0,0.93190839]
[1742438150975,0.0001695,86015.0,86014.0,0.197642]
[1742438151182,0.0001695,86015.0,86014.0,0.3448253]
[1742438151183,0.00029486,86015.0,86014.0,0.3448253]
[1742438151415,0.00029486,86015.0,86014.0,0.76323788]
[1742438151610,0.00029486,86015.0,86014.0,0.8769712]
[1742438152537,8.6e-07,86015.0,86014.0,0.9231712]
[1742438153521,8.6e-07,86015.0,86014.0,0.9271712]
[1742438153860,8.6e-07,86015.0,86014.0,0.9231712]
[1742438154359,8.6e-07,86015.0,86014.0,0.95214655]
[1742438156064,8.6e-07,86015.0,86014.0,0.95814655]
[1742438158766,0.00017026,86015.0,86014.0,0.95814655]
[1742438159935,0.00017026,86015.0,86014.0,0.95810655]
[1742438160505,0.00017026,86015.0,86014.0,0.95210655]
[1742438160707,0.00017026,86015.0,86014.0,0.94610655]
[1742438160911,0.00017026,86015.0,86014.0,0.95810655]
[1742438161109,0.00017026,86015.0,86014.0,0.83440655]
[1742438161362,0.00017026,86015.0,86014.0,0.53261735]
[1742438161563,0.00017026,86015.0,86014.0,0.66405735]
[1742438162305,0.00017026,86015.0,86014.0,0.6725982]
[1742438162456,0.00017026,86015.0,86014.0,0.6785982]
[1742438163137,0.00017026,86015.0,86014.0,0.6725982]
[1742438163260,0.00017026,86015.0,86014.0,0.5411582]
[1742438163489,0.00017026,86015.0,86014.0,0.64962285]
[1742438163702,0.00017026,86015.0,86014.0,0.65562285]
[1742438164581,0.00017026,86015.0,86014.0,0.64962285]
[1742438164792,0.00017026,86015.0,86014.0,0.65562285]
[1742438165238,0.00017026,86015.0,86014.0,0.77519788]
[1742438165436,0.00017026,86015.0,86014.0,0.88817144]
[1742438166341,0.00017026,86015.0,86014.0,0.87617144]
[1742438166517,0.00017026,86015.0,86014.0,0.88817144]
[1742438166734,0.00017026,86015.0,86014.0,0.88217144]
[1742438166932,0.00017026,86015.0,86014.0,0.87617144]
[1742438167114,0.00017026,86015.0,86014.0,0.88217144]
[1742438167314,0.00017026,86015.0,86014.0,0.88817144]
[1742438169244,0.00017026,86015.0,86014.0,0.93767144]
[1742438169589,0.00017026,86015.0,86014.0,1.51623144]
[1742438171112,0.000339,86030.0,86029.0,0.311623]
[1742438171313,0.00075676,86030.0,86029.0,0.45760385]
[1742438172224,0.00075676,86030.0,86029.0,0.493768]
[1742438172571,0.00075676,86030.0,86029.0,0.499768]
[1742438173004,0.00075676,86030.0,86029.0,0.505768]
[1742438174826,0.00075676,86030.0,86029.0,0.52899207]
[1742438181875,0.00075676,86030.0,86029.0,0.39755207]
[1742438182080,0.00075676,86030.0,86029.0,0.52899207]
[1742438183269,0.00075676,86030.0,86029.0,0.51733067]
[1742438183583,0.00075676,86030.0,86029.0,0.52333067]
[1742438184749,0.00075676,86030.0,86029.0,0.52933067]
[1742438192516,0.00075676,86030.0,86029.0,0.39789067]
[1742438192732,0.00075676,86030.0,86029.0,0.52933067]
[1742438198609,0.00075676,86030.0,86029.0,0.5060666]
[1742438198908,0.00075676,86030.0,86029.0,0.3746666]
[1742438199126,0.08005676,86030.0,86029.0,0.5060666]
[1742438199883,0.08005676,86030.0,86029.0,0.5000666]
[1742438200087,0.08005676,86030.0,86029.0,0.5060666]
[1742438200490,0.00075676,86030.0,86029.0,0.5060666]
[1742438200726,0.24913179,86030.0,86029.0,0.04850275]
[1742438200928,0.26075479,86030.0,86029.0,0.0003386]
[1742438201099,0.14117976,86030.0,86029.0,0.0003386]
[1742438201311,0.14117976,86030.0,86029.0,0.0063386]
[1742438201518,0.14117976,86030.0,86029.0,0.0123386]
[1742438201941,0.14117976,86030.0,86029.0,0.0063386]
[1742438202257,0.14117976,86030.0,86029.0,0.0103386]
[1742438202764,0.14117976,86030.0,86029.0,0.0043386]
[1742438202960,0.14117976,86030.0,86029.0,0.0083386]
[1742438203467,0.14117976,86030.0,86029.0,0.0043386]
[1742438203679,0.14117976,86030.0,86029.0,0.0083386]
[1742438208569,0.14117976,86030.0,86029.0,0.22048545]
[1742438208570,0.00075676,86030.0,86029.0,0.22048545]
[1742438210061,0.00075676,86030.0,86029.0,0.55274474]
[1742438210268,0.00075676,86030.0,86029.0,0.55774474]
[1742438210821,0.00075676,86030.0,86029.0,0.55874474]
[1742438212646,0.00075676,86030.0,86029.0,0.69018474]
[1742438216532,0.00075676,86030.0,86029.0,0.04659789]
[1742438216533,0.19836076,86030.0,86029.0,0.04659789]
[1742438216732,0.19836076,86030.0,86029.0,0.0103386]
[1742438216733,0.27516076,86030.0,86029.0,0.0103386]
[1742438217718,0.27516076,86030.0,86029.0,0.0003386]
[1742438218047,0.27516076,86030.0,86029.0,0.0083386]
[1742438218250,0.00075676,86030.0,86029.0,0.0083386]
[1742438218432,0.00075676,86030.0,86029.0,0.22048545]
[1742438219233,0.00075676,86030.0,86029.0,0.25274233]
[1742438219694,0.00075676,86030.0,86029.0,0.25774233]
[1742438220242,0.00075676,86030.0,86029.0,0.25374233]
[1742438220447,0.00075676,86030.0,86029.0,0.02487945]
[1742438221162,0.00075676,86030.0,86029.0,0.03650245]
[1742438221983,0.00075676,86030.0,86029.0,0.0727565]
[1742438223348,0.00075676,86030.0,86029.0,0.37391877]
[1742438223554,0.000339,86031.0,86030.0,0.51214485]
[1742438223776,0.000339,86031.0,86030.0,0.5483989]
[1742438224961,1e-06,86031.0,86030.0,1.21267393]
[1742438225162,0.082,86066.0,86048.0,0.197563]
[1742438225415,0.00212528,86049.0,86048.0,0.34350385]
[1742438225720,0.00212528,86049.0,86048.0,0.37974185]
[1742438226892,2.8e-07,86049.0,86048.0,0.8100149]
[1742438227110,2.8e-07,86049.0,86048.0,1.3563149]
[1742438227513,2.8e-07,86049.0,86048.0,1.3623149]
[1742438227776,2.8e-07,86049.0,86048.0,1.3563149]
[1742438227926,2.8e-07,86049.0,86048.0,1.39112131]
[1742438228293,2.8e-07,86049.0,86048.0,1.39712131]
[1742438228468,2.8e-07,86049.0,86048.0,1.38512131]
[1742438228671,2.8e-07,86049.0,86048.0,1.39112131]
[1742438229061,2.8e-07,86049.0,86048.0,1.3503149]
[1742438229257,2.8e-07,86049.0,86048.0,1.3753149]
[1742438229431,2.8e-07,86049.0,86048.0,1.3563149]
[1742438229642,2.8e-07,86049.0,86048.0,1.3873149]
[1742438229835,7.8e-07,86049.0,86048.0,1.3813149]
[1742438230038,0.002,86069.0,86058.0,0.38922]
[1742438230237,0.002,86069.0,86058.0,0.55957388]
[1742438230652,0.002,86069.0,86058.0,0.56457388]
[1742438231354,0.002,86069.0,86058.0,0.57057388]
[1742438232028,0.002,86069.0,86058.0,0.57657388]
[1742438232181,0.002,86069.0,86058.0,0.99147388]
[1742438232381,0.002,86069.0,86058.0,0.98047388]
[1742438232785,0.002,86069.0,86058.0,0.90287388]
[1742438232961,0.002,86069.0,86058.0,1.00399588]
[1742438233318,0.002,86069.0,86058.0,1.02782198]
[1742438233719,0.002,86069.0,86058.0,1.02182198]
[1742438234140,0.002,86069.0,86058.0,1.02782198]
[1742438234542,0.002,86069.0,86058.0,1.03282198]
[1742438234716,0.002,86069.0,86058.0,1.06883042]
[1742438235115,0.002,86069.0,86058.0,1.17277275]
[1742438235316,0.002,86069.0,86058.0,1.13076431]
[1742438235523,0.002,86069.0,86058.0,1.13676431]
[1742438235918,0.002,86069.0,86058.0,1.13076431]
[1742438236319,0.002,86069.0,86058.0,1.13676431]
[1742438236621,0.002,86069.0,86058.0,1.13076431]
[1742438236751,0.002,86069.0,86058.0,1.71004431]
[1742438237155,0.002,86069.0,86058.0,1.71504431]
[1742438238285,0.002,86069.0,86058.0,1.7510147]
[1742438238853,0.002,86069.0,86058.0,1.64707237]
[1742438239482,0.002,86069.0,86058.0,1.72527237]
[1742438240055,0.0001694,86083.0,86073.0,0.497506]
[1742438240258,0.00023744,86074.0,86073.0,0.76298188]
[1742438240875,0.00023744,86074.0,86073.0,0.77171314]
[1742438241473,0.00023744,86074.0,86073.0,1.34995314]
[1742438241908,0.00023744,86074.0,86073.0,1.42935314]
[1742438242295,0.00023744,86074.0,86073.0,1.43435314]
[1742438242479,0.00023744,86074.0,86073.0,1.48211153]
[1742438242683,0.00023744,86074.0,86073.0,1.51184636]
[1742438242858,0.00023744,86074.0,86073.0,1.51784636]
[1742438243063,0.00023744,86074.0,86073.0,1.51184636]
[1742438243297,0.00023744,86074.0,86073.0,1.16197048]
[1742438243521,0.00023744,86074.0,86073.0,1.23953209]
[1742438243881,0.00023744,86074.0,86073.0,1.11421209]
[1742438244108,0.00023744,86074.0,86073.0,1.34737229]
[1742438244280,0.00023744,86074.0,86073.0,1.34137229]
[1742438244498,0.00023744,86074.0,86073.0,1.35591314]
[1742438245365,0.0001694,86083.0,86082.0,0.185869]
[1742438245559,0.0001694,86083.0,86082.0,0.197485]
[1742438246004,0.0001694,86083.0,86082.0,0.46292088]
[1742438246652,0.0001694,86083.0,86082.0,0.76292088]
[1742438246852,0.0001694,86083.0,86082.0,0.76892088]
[1742438247160,0.0001694,86083.0,86082.0,0.77492088]
[1742438247641,0.0001694,86083.0,86082.0,0.76892088]
[1742438247844,0.0001694,86083.0,86082.0,0.77492088]
[1742438248249,0.0001694,86083.0,86082.0,0.81090299]
[1742438249428,0.0001694,86083.0,86082.0,0.80490299]
[1742438249634,0.0001694,86083.0,86082.0,0.81090299]
[1742438252562,0.0001694,86083.0,86082.0,0.80490299]
[1742438252760,0.0001694,86083.0,86082.0,0.81090299]
[1742438252911,0.0001694,86083.0,86082.0,0.80490299]
[1742438253127,0.0001694,86083.0,86082.0,0.81090299]
[1742438253830,0.0001694,86083.0,86082.0,0.80490299]
[1742438254034,0.0001694,86083.0,86082.0,0.79890299]
[1742438254216,0.0001694,86083.0,86082.0,0.80490299]
[1742438254418,0.0001694,86083.0,86082.0,0.81090299]
[1742438254614,0.0001694,86083.0,86082.0,0.80490299]
[1742438255726,0.0001694,86083.0,86082.0,0.79890299]
[1742438256101,0.0001694,86083.0,86082.0,0.81090299]
[1742438256566,0.0001694,86083.0,86082.0,0.80490299]
[1742438256790,0.0001694,86083.0,86082.0,1.38302299]
[1742438257478,0.0001694,86083.0,86082.0,1.38902299]
[1742438258466,0.0001694,86083.0,86082.0,1.38302299]
[1742438258883,0.0001694,86083.0,86082.0,1.37702299]
[1742438259290,0.0001694,86083.0,86082.0,1.38302299]
[1742438259700,0.0001694,86083.0,86082.0,1.38902299]
[1742438260471,0.0001694,86083.0,86082.0,1.25770299]
[1742438260681,0.0001694,86083.0,86082.0,1.38902299]
[1742438261265,0.1297694,86083.0,86082.0,0.62610211]
[1742438261513,0.0031694,86089.0,86086.0,0.011616]
[1742438261710,0.0031694,86089.0,86087.0,0.23345411]
[1742438262026,0.0031694,86089.0,86088.0,0.03598211]
[1742438262861,0.0031694,86089.0,86088.0,0.16726211]
[1742438263519,0.0031694,86089.0,86088.0,0.17226211]
[1742438264113,0.0147844,86089.0,86088.0,0.17230211]
[1742438264322,0.0936844,86089.0,86088.0,0.17230211]
[1742438264558,0.1394844,86089.0,86088.0,0.17730211]
[1742438265229,0.1394844,86089.0,86088.0,0.14132]
[1742438265872,0.1394844,86089.0,86088.0,0.01]
[1742438271412,0.1278694,86089.0,86088.0,0.01]
[1742438271587,0.0031694,86089.0,86088.0,0.021616]
[1742438272137,0.0031694,86089.0,86088.0,0.0578348]
[1742438274739,0.0031694,86089.0,86088.0,0.07237565]
[1742438275661,0.0031694,86089.0,86088.0,0.06737565]
[1742438275872,0.0031694,86089.0,86088.0,0.19869565]
[1742438276389,0.0031694,86089.0,86088.0,0.16747685]
[1742438276688,0.0031694,86089.0,86088.0,0.62326709]
[1742438278014,0.0031694,86089.0,86088.0,0.50369206]
[1742438278225,0.0031694,86089.0,86088.0,0.638792]
[1742438278531,0.0031694,86089.0,86088.0,0.628792]
[1742438278764,0.0031694,86089.0,86088.0,0.633792]
[1742438278967,0.0031694,86089.0,86088.0,0.638792]
[1742438279117,0.0031694,86089.0,86088.0,0.628792]
[1742438279482,0.0031694,86089.0,86088.0,0.638792]
[1742438280110,0.0031694,86089.0,86088.0,0.77290788]
[1742438280330,0.0031694,86089.0,86088.0,0.80912482]
[1742438281072,0.0031694,86089.0,86088.0,0.88982482]
[1742438281328,0.0031694,86089.0,86088.0,0.93772482]
[1742438281580,0.0031694,86089.0,86088.0,0.93272482]
[1742438281827,0.0031694,86089.0,86088.0,0.92772482]
[1742438282168,0.0031694,86089.0,86088.0,0.93972482]
[1742438282422,0.0031694,86089.0,86088.0,0.79912482]
[1742438282649,0.0031694,86089.0,86088.0,0.80512482]
[1742438282871,0.0031694,86089.0,86088.0,0.640792]
[1742438283124,0.0031694,86089.0,86088.0,0.67700875]
[1742438284237,0.0031694,86089.0,86088.0,0.81112463]
[1742438284931,0.0031694,86089.0,86088.0,0.80512463]
[1742438285177,0.0031694,86089.0,86088.0,0.81112463]
[1742438285699,0.0031694,86089.0,86088.0,0.80512463]
[1742438285895,0.0031694,86089.0,86088.0,0.82269704]
[1742438286033,0.0031694,86089.0,86088.0,0.81669704]
[1742438286233,0.0031694,86089.0,86088.0,0.80512463]
[1742438286456,0.0031694,86089.0,86088.0,0.81112463]
[1742438286662,0.0031694,86089.0,86088.0,0.80512463]
[1742438286874,0.0031694,86089.0,86088.0,0.81112463]
[1742438287085,8e-07,86102.0,86088.0,0.92690863]
[1742438287439,8e-07,86102.0,86101.0,0.64378285]
[1742438287440,0.00012602,86102.0,86101.0,0.64378285]
[1742438287632,0.00012602,86102.0,86101.0,1.50893463]
[1742438287872,0.00012602,86102.0,86101.0,1.18021263]
[1742438288045,0.00012602,86102.0,86101.0,1.31149263]
[1742438288260,0.00012602,86102.0,86101.0,1.03387178]
[1742438288464,0.00012602,86102.0,86101.0,1.04557675]
[1742438288618,0.13894002,86102.0,86101.0,0.03621675]
[1742438288852,0.197446,86099.0,86098.0,0.00871783]
[1742438289097,0.01174002,86102.0,86091.0,0.20038985]
[1742438289283,0.19756802,86102.0,86101.0,0.006]
[1742438289643,0.20902578,86102.0,86101.0,0.006]
[1742438289882,0.20902578,86102.0,86090.0,0.3]
[1742438289883,0.19745,86097.0,86096.0,0.13128]
[1742438291356,0.19748,86084.0,86083.0,0.0003388]
[1742438291567,0.19748,86084.0,86083.0,0.1316188]
[1742438292409,0.19748,86084.0,86083.0,0.0063388]
[1742438292614,0.19748,86084.0,86083.0,0.1376188]
[1742438293013,0.19748,86084.0,86083.0,0.1436188]
[1742438294268,0.19748,86084.0,86083.0,0.0123388]
[1742438295002,0.39635503,86084.0,86083.0,0.0063388]
[1742438295704,0.39635503,86084.0,86083.0,0.0003388]
[1742438299983,0.80495503,86084.0,86083.0,0.0003388]
[1742438302334,0.594464,86084.0,86083.0,0.0003388]
[1742438302590,0.60608,86084.0,86083.0,0.0003388]
[1742438304066,0.60608,86084.0,86083.0,0.0013388]
[1742438305026,0.60608,86084.0,86083.0,0.0023388]
[1742438305572,0.19748,86084.0,86083.0,0.0023388]
[1742438306367,0.31705503,86084.0,86083.0,0.0023388]
[1742438307043,0.19748,86084.0,86083.0,0.0023388]
[1742438315494,0.39775503,86084.0,86083.0,0.0023388]
[1742438318114,0.197476,86087.0,86083.0,0.0023388]
[1742438318427,0.197478,86085.0,86083.0,0.0023388]
[1742438319074,0.4086,86089.0,86086.0,0.18586]
[1742438319268,0.185862,86086.0,86083.0,0.0003388]
[1742438319678,0.185862,86086.0,86083.0,0.0013388]
[1742438320426,0.197478,86086.0,86083.0,0.0013388]
[1742438320630,0.185864,86084.0,86083.0,0.0013388]
[1742438320782,0.19748,86084.0,86083.0,0.0013388]
[1742438320951,0.19748,86084.0,86083.0,0.0003388]
[1742438321156,0.011616,86084.0,86083.0,0.0003388]
[1742438321913,0.011616,86084.0,86083.0,0.0013388]
[1742438322279,0.011616,86084.0,86083.0,0.0003388]
[1742438322478,0.011616,86084.0,86083.0,0.0023388]
[1742438326006,0.197466,86091.0,86084.0,0.197479]
[1742438326158,0.011615,86090.0,86084.0,0.197479]
[1742438326993,0.197468,86090.0,86084.0,0.197479]
[1742438327197,0.197468,86090.0,86085.0,0.197477]
[1742438328775,0.197468,86090.0,86085.0,0.011616]
[1742438330450,0.011615,86090.0,86085.0,0.197476]
[1742438330831,0.197468,86090.0,86085.0,0.197476]
[1742438331035,0.185855,86089.0,86084.0,0.197479]
[1742438332604,0.011615,86091.0,86085.0,0.197477]
[1742438333214,0.197466,86091.0,86085.0,0.197477]
[1742438333414,0.197466,86091.0,86085.0,0.196317]
[1742438334197,0.197466,86091.0,86086.0,0.185858]
[1742438334606,0.011616,86087.0,86083.0,0.1316588]
[1742438334809,0.19748,86085.0,86083.0,0.1316588]
[1742438335012,0.011616,86084.0,86083.0,0.1316588]
[1742438335632,0.19748,86085.0,86083.0,0.1316588]
[1742438335828,0.011616,86087.0,86083.0,0.1316588]
[1742438336230,0.011616,86087.0,86083.0,0.0003388]
[1742438336440,0.011616,86087.0,86083.0,0.0013388]
[1742438336820,0.011616,86087.0,86083.0,0.0003388]
[1742438337227,0.185857,86088.0,86083.0,0.0003388]
[1742438337407,0.185857,86088.0,86083.0,0.0023388]
[1742438337604,0.011615,86092.0,86086.0,0.011616]
[1742438337851,0.197464,86091.0,86084.0,0.011616]
[1742438338066,0.197468,86090.0,86084.0,0.011616]
[1742438338494,0.19747,86089.0,86083.0,0.0003388]
[1742438338644,0.19747,86089.0,86083.0,0.0013388]
[1742438338845,0.19747,86089.0,86083.0,0.0003388]
[1742438339427,0.185858,86087.0,86083.0,0.0003388]
[1742438340826,0.185858,86087.0,86083.0,0.0013388]
[1742438342268,0.197474,86087.0,86083.0,0.0013388]
[1742438342773,0.197469,86089.0,86083.0,0.0129548]
[1742438342996,0.197466,86091.0,86085.0,0.197476]
[1742438343209,0.1976214,86097.0,86092.0,0.185846]
[1742438343418,0.011615,86095.0,86090.0,0.011615]
[1742438343967,0.197457,86095.0,86090.0,0.011615]
[1742438344404,0.0001694,86097.0,86096.0,0.011614]
[1742438344605,0.0001694,86097.0,86096.0,0.142894]
[1742438345217,0.0001694,86097.0,86096.0,0.220794]
[1742438345634,0.0001694,86097.0,86096.0,0.224794]